Cogmind - Beta 13 @@@ ROGUE MODE // 2024.05.08 @ 18:48:00 Player: b00n1n Result: Destroyed by S-10 Pest with Light Assault Rifle Performance ------------- Evolutions (2) 1000 Regions Visited (5) 1000 Robots Destroyed (39) 195 Value Destroyed (923) 923 Prototype IDs (2) 40 Alien Tech Used (0) 0 Bonus (0) 0 TOTAL SCORE: 3158 Bonus ------- None Cogmind --------- Core Integrity 0/550 Matter 204/300 Energy 100/100 System Corruption 0% Temperature Danger (405) Movement Core (50) Location -8/Materials Parts ------- > --- POWER (1) -------- (None) > --- PROPULSION (4) --- (None) > --- UTILITY (3) ------ Improved Terrain Scan Processor > --- WEAPON (3) ------- (None) > --- INVENTORY (5) ---- Deuterium Engine Light Treads Medium Storage Unit Improved Terrain Scanner Targeting Computer Peak State ------------ > --- POWER ------------ Heavy Ion Engine > --- PROPULSION ------- Light Treads Light Treads Improved Treads Armored Treads > --- UTILITY ---------- Small Storage Unit Improved Terrain Scanner Improved Terrain Scan Processor > --- WEAPON ----------- Beam Rifle Particle Gun Particle Gun > --- INVENTORY -------- Deuterium Engine Light Treads Light Treads Cooling System Targeting Computer Hardened Light Armor Plating Particle Gun Plasma Cutter [Rating: 24] Favorites ----------- Power Heavy Ion Engine Engine Heavy Ion Engine Propulsion Light Treads Treads Light Treads Leg Aluminum Leg Utility Small Storage Unit Device Improved Terrain Scanner Storage Small Storage Unit Processor Terrain Scan Processor Protection Hardened Light Armor Plating Weapon Beam Rifle Energy Gun Beam Rifle Ballistic Gun Assault Rifle Special Weapon Plasma Cutter Build | -11 -10 -10 -9 -9 -8 ------- Run | Yrd Mat Min Mat Min Mat Slots Evolved 4 | . . . 2 . 2 Power . | . . . . . . Propulsion 2 | . . . 2 . . Utility 1 | . . . . . 1 Weapon 1 | . . . . . 1 Parts Attached 56 | 7 5 2 24 6 12 Power 5 | 1 2 . 2 . . Engine 5 | 1 2 . 2 . . Core . | . . . . . . Reactor . | . . . . . . Propulsion 13 | 2 . . 5 3 3 Treads 11 | . . . 5 3 3 Leg 2 | 2 . . . . . Wheel . | . . . . . . Hover . | . . . . . . Flight . | . . . . . . Utility 22 | 2 . 2 11 2 5 Device 16 | 1 . 2 10 2 1 Storage 2 | 1 . . . . 1 Processor 3 | . . . 1 . 2 Hackware . | . . . . . . Protection 1 | . . . . . 1 Artifact . | . . . . . . Weapon 16 | 2 3 . 6 1 4 Energy Gun 13 | 1 2 . 6 1 3 Energy Cannon . | . . . . . . Ballistic Gun 2 | 1 1 . . . . Ballistic Cannon . | . . . . . . Launcher . | . . . . . . Special Weapon 1 | . . . . . 1 Impact Weapon . | . . . . . . Slashing Weapon . | . . . . . . Piercing Weapon . | . . . . . . Special Melee Weapon . | . . . . . . Unidentified Prototypes 2 | . . . 2 . . Parts Lost 19 | . 1 . 4 . 14 Power 2 | . 1 . . . 1 Propulsion 7 | . . . 3 . 4 Utility 3 | . . . . . 3 Weapon 7 | . . . 1 . 6 Highest Loss Streak 14 | . 1 . 2 . 14 To Critical Strikes . | . . . . . . Average Slot Usage (%) 97 | . 100 100 93 100 94 Engine 11 | . 14 14 11 11 8 Treads 29 | . . . 25 44 33 Leg 8 | . 28 28 11 . . Device 11 | . 14 14 10 11 7 Storage 11 | . 14 14 11 11 9 Energy Gun 22 | . 21 28 22 22 25 Ballistic Gun 1 | . 6 . . . . Naked Turns . | . . . . . . Heaviest Build 32 | 12 13 13 20 21 32 Greatest Support 60 | 20 20 20 40 60 43 Greatest Overweight (x) 10 | 2 . . . 1 10 Average Overweight (x) . | . . . . . . Largest Inventory Capacity 10 | 8 8 8 8 8 10 Average Capacity 8 | 7 8 8 8 8 8 Most Carried 9 | 8 8 8 8 8 9 Average Carried 7 | 4 7 8 7 7 7 Final Capacity 8 | 8 8 8 8 8 5 Final Carried 8 | 8 8 8 8 8 5 Class Distribution -------------------- 47% | Scavenger-Mutant 45% | Mutant 7% | Scavenger-Skirmisher Dominant Class ---------------- Mutant | -10/Materials Mutant | -10/Mines Mutant | -9/Materials Scavenger-Mutant | -9/Mines Scavenger-Skirmisher | -8/Materials Resources | -11 -10 -10 -9 -9 -8 ----------- Run | Yrd Mat Min Mat Min Mat Matter Collected 776 | 220 145 20 217 86 88 Remotely . | . . . . . . Salvage Created 1080 | 10 172 45 526 176 151 Parts 67 | 4 26 2 22 7 6 Haulers Intercepted 1 | . . . 1 . . Recyclers Shooed 4 | . 2 1 1 . . Parts Field Recycled . | . . . . . . Retrieved Matter . | . . . . . . Parts Self-Destructed . | . . . . . . Prevented . | . . . . . . Kills | -11 -10 -10 -9 -9 -8 ------- Run | Yrd Mat Min Mat Min Mat Combat Hostiles Destroyed 33 | . 9 3 13 4 4 Guns 29 | . 9 3 9 4 4 AOE 4 | . . . 4 . . Classes Destroyed 9 | 1 3 . 4 . 1 Worker 1 | . 1 . . . . Tunneler 1 | 1 . . . . . Hauler 1 | . . . 1 . . Watcher 3 | . 2 . 1 . . Swarmer 17 | . 9 3 4 . 1 Grunt 7 | . . . 3 2 2 Brawler 1 | . . . 1 . . Duelist 1 | . . . . . 1 Sentry 7 | . . . 5 2 . Best Kill Streak 6 | 1 6 3 4 2 4 Combat Bots Only 6 | . 6 3 4 2 4 Max Kills in Single Turn 4 | 1 1 2 4 1 1 Gunslinging 1 | . . 1 . . . Exploded 4 | . . . 4 . . Melee . | . . . . . . Uniques/NPCs Destroyed . | . . . . . . Combat | -11 -10 -10 -9 -9 -8 -------- Run | Yrd Mat Min Mat Min Mat Hostile Shots Fired 286 | . 36 23 75 28 124 Missed 50 | . 3 9 28 2 8 Damage Taken 3046 | . 271 116 639 374 1646 Core 793 | . 41 18 158 24 552 Absorbed by Shields . | . . . . . . Core Remaining (%) 76 | 100 . 76 . 54 . Volleys Fired 99 | 3 18 8 40 13 17 Largest 3 | 2 2 2 2 2 3 Hottest 186 | 60 100 100 112 112 186 Shots Fired 199 | 6 36 16 80 27 34 Gun 198 | 6 36 16 80 27 33 Cannon . | . . . . . . Launcher . | . . . . . . Special 1 | . . . . . 1 Kinetic 19 | 3 16 . . . . Thermal 180 | 3 20 16 80 27 34 Explosive . | . . . . . . Electromagnetic . | . . . . . . Robot Hit Streak 16 | 2 3 4 10 16 13 Robot Miss Streak 5 | 3 3 4 2 1 5 Penetration Max . | . . . . . . Secondary Targets 7 | . 2 1 . 2 2 Max Gunslinging Chain 1 | . 1 1 . 1 1 Shots Hit Robots 130 | 2 19 8 57 24 20 Core Hits 60 | 1 12 3 26 8 10 Critical Kills . | . . . . . . Critical Parts Destroyed . | . . . . . . Critical Strikes 16 | . 1 1 10 2 2 Burn 16 | . 1 1 10 2 2 Melee Attacks . | . . . . . . Impact . | . . . . . . Slashing . | . . . . . . Piercing . | . . . . . . Sneak Attacks . | . . . . . . Combat Hostiles . | . . . . . . Follow-up Attacks . | . . . . . . Damage Inflicted 2274 | 25 285 106 1124 373 361 Guns 1818 | 22 278 106 739 334 339 Cannons . | . . . . . . Explosions 376 | . . . 376 . . Melee . | . . . . . . Ramming 70 | 3 7 . 9 39 12 Kinetic 151 | 10 141 . . . . Thermal 1677 | 12 137 106 739 334 349 Explosive 376 | . . . 376 . . Electromagnetic . | . . . . . . Impact . | . . . . . . Slashing . | . . . . . . Piercing . | . . . . . . Highest Corruption 3 | . . . 3 3 . Average Corruption 2 | . . . 2 3 . Corruption Purged . | . . . . . . Corruption Blocked . | . . . . . . Effects 26 | . . . 6 20 . Message Errors 11 | . . . 2 9 . Matter Fused 3 | . . . 2 1 . Heat Flow Errors 1 | . . . . 1 . Energy Discharges 6 | . . . . 6 . Data Loss (minor) 3 | . . . 2 1 . Misfires 1 | . . . . 1 . Alerts 1 | . . . . 1 . Overload Shots . | . . . . . . Overflow Damage . | . . . . . . Projectiles . | . . . . . . Explosions . | . . . . . . Melee . | . . . . . . Knockbacks 1 | . . . . . 1 Impact 1 | . . . . . 1 Kinetic . | . . . . . . Secondary . | . . . . . . Self-Inflicted Damage 6 | . . . . . 6 Shots . | . . . . . . Rammed 10 | . . . 1 5 4 Targets Rammed 17 | 2 3 . 3 5 4 Kicked 7 | 2 3 . 2 . . Crushed . | . . . . . . Highest Temperature 974 | . 78 63 105 179 974 Average Temperature 168 | . 26 28 28 43 601 Received Heat Transfer 657 | . . . 207 189 261 Effects 35 | . . . . . 35 Shutdowns 4 | . . . . . 4 Energy Bleed 4 | . . . . . 4 Interference 6 | . . . . . 6 Matter Decay 3 | . . . . . 3 Short Circuit 4 | . . . . . 4 Damage (minor) 1 | . . . . . 1 Damage (major) 11 | . . . . . 11 Damage (core) 2 | . . . . . 2 Siege Activations . | . . . . . . Robots Corrupted . | . . . . . . Combat Hostiles . | . . . . . . Parts Fried . | . . . . . . Impact Corruptions . | . . . . . . Robots Melted . | . . . . . . Combat Hostiles . | . . . . . . Parts Melted 19 | . . 1 13 3 2 Heat Transferred 5723 | 25 481 370 2849 999 999 Parts Sabotaged . | . . . . . . Parts Stolen . | . . . . . . Parts Stripped . | . . . . . . Power Chain Reactions . | . . . . . . Alert | -11 -10 -10 -9 -9 -8 ------- Run | Yrd Mat Min Mat Min Mat Peak Influence 392 | 5 291 110 392 105 85 Initial 42 | . 3 40 42 3 . Average 94 | 1 147 85 251 10 7 Maximum Alert Level 1 | . 1 . 1 . . Low Security (%) 76 | 100 64 100 28 100 100 Level 1 23 | . 36 . 71 . . Level 2 . | . . . . . . Level 3 . | . . . . . . Level 4 . | . . . . . . Level 5 . | . . . . . . High Security . | . . . . . . Max Security . | . . . . . . Squads Dispatched 3 | . 1 . 1 . 1 Investigation 1 | . 1 . . . . Extermination . | . . . . . . Reinforcement 1 | . . . 1 . . Assault . | . . . . . . Garrison 1 | . . . . . 1 Intercept . | . . . . . . Searches Triggered . | . . . . . . Construction Impeded . | . . . . . . Haulers Reinforced . | . . . . . . Active Scanning Responses . | . . . . . . Cargo Convoy Interrupts . | . . . . . . Stealth | -11 -10 -10 -9 -9 -8 --------- Run | Yrd Mat Min Mat Min Mat Distress Signals 3 | . . . 3 . . Communications Jammed . | . . . . . . Distress Signals . | . . . . . . Times Spotted 50 | . 15 3 20 4 8 Peak Tracking Total 6 | . 6 3 5 2 4 Tactical Retreats 1 | . . . 1 . . Traps | -11 -10 -10 -9 -9 -8 ------- Run | Yrd Mat Min Mat Min Mat Traps Triggered 2 | . 1 . 1 . . Indirectly . | . . . . . . Trap Hack Attempts . | . . . . . . Triggered . | . . . . . . Disarmed . | . . . . . . Reprogrammed . | . . . . . . Reused . | . . . . . . Traps Extracted . | . . . . . . Installed . | . . . . . . Triggered . | . . . . . . Machines | -11 -10 -10 -9 -9 -8 ---------- Run | Yrd Mat Min Mat Min Mat Machines Disabled 2 | . . . 1 . 1 Max in Single Turn 1 | . . . 1 . 1 Machines Repaired . | . . . . . . Machines Dismantled . | . . . . . . Machines Sabotaged . | . . . . . . Overloaded Fab Kills . | . . . . . . Hacking | -11 -10 -10 -9 -9 -8 --------- Run | Yrd Mat Min Mat Min Mat Machines Accessed 9 | . 7 . 2 . . Terminals 8 | . 6 . 2 . . Fabricators . | . . . . . . Repair Stations . | . . . . . . Recycling Units 1 | . 1 . . . . Scanalyzers . | . . . . . . Garrison Access . | . . . . . . Total Hacks 26 | . 21 . 5 . . Successful 16 | . 14 . 2 . . Failed 10 | . 7 . 3 . . Catastrophic 3 | . 1 . 2 . . Database Lockouts . | . . . . . . Manual . | . . . . . . Terminals 25 | . 20 . 5 . . Fabricators . | . . . . . . Repair Stations . | . . . . . . Recycling Units 1 | . 1 . . . . Scanalyzers . | . . . . . . Garrison Access . | . . . . . . Terminal Hacks 15 | . 13 . 2 . . Record 7 | . 7 . . . . Robot Analysis 1 | . 1 . . . . Alert Level 2 | . 1 . 1 . . Unreport Threat 1 | . . . 1 . . Dispatch Records 1 | . 1 . . . . Security Status 1 | . 1 . . . . Hauler Manifests 1 | . 1 . . . . Registered Prototypes 1 | . 1 . . . . Fabricator Hacks . | . . . . . . Repair Station Hacks . | . . . . . . Recycling Unit Hacks 1 | . 1 . . . . Report Inventory 1 | . 1 . . . . Scanalyzer . | . . . . . . Garrison Access Hacks . | . . . . . . Unauthorized Hacks . | . . . . . . Terminals . | . . . . . . Fabricators . | . . . . . . Repair Stations . | . . . . . . Recycling Units . | . . . . . . Scanalyzers . | . . . . . . Garrison Access . | . . . . . . Data Cores Recovered . | . . . . . . Used . | . . . . . . Hacking Detections 6 | . 4 . 2 . . Full Trace Events . | . . . . . . Feedback Events . | . . . . . . Feedback Blocked . | . . . . . . Robot Schematics Acquired . | . . . . . . Robots Built . | . . . . . . Authchips . | . . . . . . Time . | . . . . . . Total Robot Build Rating . | . . . . . . Part Schematics Acquired . | . . . . . . Parts Built . | . . . . . . Authchips . | . . . . . . Time . | . . . . . . Total Part Build Rating . | . . . . . . Parts Repaired . | . . . . . . Time . | . . . . . . Parts Recycled . | . . . . . . Recycled Matter . | . . . . . . Retrieved Matter . | . . . . . . Retrieved Components . | . . . . . . Parts Scanalyzed . | . . . . . . Part Schematics Acquired . | . . . . . . Parts Damaged . | . . . . . . Bothacking | -11 -10 -10 -9 -9 -8 ------------ Run | Yrd Mat Min Mat Min Mat Used RIF Installer . | . . . . . . Robots Hacked . | . . . . . . Non-combat . | . . . . . . Combat . | . . . . . . Robot Hacks Applied . | . . . . . . Relay Couplers Released . | . . . . . . Fabnet Peak Effective % . | . . . . . . Robots Rewired . | . . . . . . Allies Hacked . | . . . . . . Hacks Repelled . | . . . . . . Allies | -11 -10 -10 -9 -9 -8 -------- Run | Yrd Mat Min Mat Min Mat Total Allies . | . . . . . . Largest Group . | . . . . . . Highest-Rated Group . | . . . . . . Highest-Rated Ally . | . . . . . . Total Orders . | . . . . . . Ally Attacks . | . . . . . . Total Damage . | . . . . . . Kills . | . . . . . . Allies Corrupted . | . . . . . . Allies Melted . | . . . . . . Intel | -11 -10 -10 -9 -9 -8 ------- Run | Yrd Mat Min Mat Min Mat Robot Analysis Total 1 | . 1 . . . . Derelict Logs Recovered 2 | . . . . 2 . Drone Launches . | . . . . . . Drone Recoveries . | . . . . . . Exploration | -11 -10 -10 -9 -9 -8 ------------- Run | Yrd Mat Min Mat Min Mat Turns Passed 3313 | 89 550 96 827 1435 316 Spaces Moved 1875 | 52 366 58 408 852 139 Core 13 | 10 . . . . 3 Treads 1174 | . . . 186 852 136 Legs 688 | 42 366 58 222 . . Wheels . | . . . . . . Hover . | . . . . . . Flight . | . . . . . . Fastest Speed 50 | 50 120 120 120 160 160 Average Speed 145 | 109 120 120 138 160 174 Slowest Speed 550 | 150 120 120 160 240 550 Overloaded Moves . | . . . . . . Propulsion Burnouts . | . . . . . . Robots Hopped . | . . . . . . Cave-ins Triggered . | . . . . . . Exploration Rate (%) 35 | 3 52 18 30 95 14 Regions Visited 5 Branch Regions 2 Pre-discovered Areas 1 | . . . . 1 . Known Exits Taken . | . . . . . . Unknown Exits Taken 5 | 1 1 1 1 1 . Scrap Searched 2 | . . . . 2 . Spaces Dug . | . . . . . . Terrain Destroyed 28 | . . . 28 . . Melee . | . . . . . . Projectile . | . . . . . . AOE 28 | . . . 28 . . Terrain Rammed . | . . . . . . Walls Destroyed . | . . . . . . Machines Disabled . | . . . . . . Actions | -11 -10 -10 -9 -9 -8 --------- Run | Yrd Mat Min Mat Min Mat Total 2251 | 74 444 67 589 897 180 Wait 141 | 3 33 . 91 10 4 Move 1870 | 51 365 57 407 851 139 Hop . | . . . . . . Pick Up 33 | 8 9 . 10 4 2 Fast Attach 16 | 7 1 . 7 . 1 Attach 11 | . 2 . 3 . 6 Detach 1 | . . . 1 . . Swap 29 | . 2 2 14 6 5 Drop 34 | . 11 . 13 8 2 Fire 99 | 3 18 8 40 13 17 Melee . | . . . . . . Ram 4 | . . . . . 4 Kick 7 | 2 3 . 2 . . Crush 6 | . . . 1 5 . Escape Stasis . | . . . . . . Rewire . | . . . . . . Trap . | . . . . . . Miscellaneous . | . . . . . . Route ------- -11/Scrapyard -10/Materials (discovered 2 exits: *Mat / [*Min]) -10/Mines -9/Materials -9/Mines (discovered 2 exits: [*Mat x2]) -8/Materials History --------- Turn | Location | Event 23 | -11/Scrapyard | Discovered new exit (range 14) 90 | -11/Scrapyard | Entered Materials 347 | -10/Materials | Discovered new exit (range 16) 361 | -10/Materials | Build established: Mutant 451 | -10/Materials | Discovered new exit (range 14) 640 | -10/Materials | Entered Mines 701 | -10/Mines | Discovered new exit (range 14) 726 | -10/Mines | Assembled infested the area 736 | -10/Mines | Entered Materials 736 | -9/Materials | Evolved 2 slots: Propulsion x2 1543 | -9/Materials | Discovered new exit (range 9) 1563 | -9/Materials | Entered Mines 1654 | -9/Mines | Met a Derelict bent on vengeance 1750 | -9/Mines | Build established: Scavenger-Mutant 1789 | -9/Mines | Discovered new exit (range 7) 1876 | -9/Mines | Received a Rocket Launcher from a helpful Derelict 2041 | -9/Mines | Learned location of Recycling (-7) 2230 | -9/Mines | Discovered new exit (range 15) 2470 | -9/Mines | Learned Materials trap positions 2998 | -9/Mines | Entered Materials 2998 | -8/Materials | Evolved 2 slots: Utility x1, Weapon x1 2999 | -8/Materials | Loaded intel: 24 trap records 3267 | -8/Materials | Garrison activated, responded to threat 3296 | -8/Materials | Core integrity fell below 50% 3311 | -8/Materials | Core integrity fell below 20% 3314 | -8/Materials | Destroyed by S-10 Pest with Light Assault Rifle Last Messages --------------- 03301_ Acquired Particle Gun. 03302_ Overheating: System interference. 03302_ Particle Gun temporarily disabled. 03304_ Plasma Cutter broken. 03304_ Overheating: Short circuit. 03304_ Penetrated by Slug. 03305_ Hvy. Ion Engine destroyed. 03307_ Overheating: Matter decay (-39). 03307_ Broken Plasma Cutter destroyed. 03307_ Penetrated by Slug. 03307_ R-06 Scavenger destroyed. 03309_ Slammed into H-55 Commando. 03309_ H-55 Commando knocked back. 03310_ Acquired 43 matter. 03310_ Penetrated by Slug. 03310_ Particle Gun destroyed. 03311_ Med. Storage Unit destroyed. 03311_ Slammed into H-55 Commando. 03313_ Penetrated by Slug. 03313_ Slammed into H-55 Commando. Map ----- +----------------------------------------------------+ | | | | | | | | | | | | | | | | | | | ???????????????????????????????#??#?????#?????? | | ???????????????????????????????????????#?##???? | | ???????????????????????????????????#??#???????? | | ???????????????????????????? ?#?#?????##??#?##? | | ?????????????????????????????##????#????#????#? | | ??????????????????????? ??? ?##??????####?##?## | | ???????????????????????? ? ??#???#???##????##?? | | ???????????????????????????? ###?####?#?#???#?? | | ???????????????????????? ?? ???##?##?#???????# | | ????????????????????#???? ? ##????????#??##?#? | | ?????????????????????? ??? ??#??##?####??##?## | | ??????????????? ?? ?#? ? ??? ?#??###########??# | | ??????????????? ????##??##??###??##### !!!##??# | | ????????????????## #??#?###?#?### #! !###? | | ?????????????#### ############# # ###? | | ???????????+ % ###### # #####? | | ???????????#??#?# h@^ ^ ####?? | | ?????????? ?????# !####%=%^ #??#?# | | ????????????#????#?#?####Y s^ """ ###+####?## | | ???????? ? ?#?#?#####?#" * ^^""" # ##?? | | ???????????????#????###" s! """ + """ ###? | | ????????? ??? ##?##?### " = # """ ###? | | ?????????? ???#?#?#?##### # """ ###? | | ????? ?????? ??#???###### # ##?# | | ?????? ? ??? ############ ###### # ]#?#? | | ????? ??? ??"?#?#?# / # # # ####+###?#? | | ???????""?????#?#?# += + # #?## ##?##? | | ????????????"?#?### """ #%*# # #### #####? | | ????????? ? ? ???##= """ #!=# ] # #### #####? | | ?????##?#?????##### """ #u # # #### ###?#? | | ????????? ###???##! # # # #### ####?? | | ??????? ??????############ # # #??#?# | | ?????? ? ? ?????########## # + ##??#? | | ?????????? ##?##?##]] # ######+####?#? | | ????????????? ?? ?#]] ####### #?? | | ????????? ?? ? ?#!! ##?#??# #?# | | ?????????????? ??#!! ##?#?## ! ##? | | ????? ??? ??? ? ?#// #??#### ### | | ??????????????? ??#// ####### #?# | | ????????????? ? #?##### ##?#### """ """ #?? | | ?????????????? ?#??#?# ##?#?## """ """ #?? | +----------------------------------------------------+ Best States ------------- Heat Dissipation 53 Energy Generation 14 Energy Capacity 280 Matter Stores 300 Matter Capacity 300 Sight Range 16 Terrain Scan Range 16 Terrain Scan Density 110 Armor Coverage 150 Evasion (%) 55 Recoil Reduction 3 Item Schematics ----------------- None Robot Schematics ------------------ None Fabricated ------------ Nothing Alien Tech Used ----------------- None Achievements -------------- None Challenges ------------ None Game ------ Seed AerolevRelayExoskeleton Manual? 0 Play Time 00:36:03 Cumulative 68.5 hours Start 2024.05.08 @ 18:10:31 End 2024.05.08 @ 18:48:00 Sessions 3 Manual Loads 0 Difficulty Rogue Special Mode None Game No. 35 Rogue 35 Adventurer 0 Explorer 0 Win Type - Total 0 Types 0/0/0/0/0/0/0/0/0 Lore% 35 Gallery% 53 Achievement% 30 Wizard Run 0 Options --------- Layout 1 ASCII 1 Keyboard 1 Movement Vi Keybinds 0 Fullscreen 1 Font 24/Smallcaps Map View 50x35 Zoom Use 0% Tactical HUD 1 Map Filters NONE Filters NONE Steam 1 RUN: ab280df4-36c3-4ce1-84e3-f7bffc9078f3